Cogmind - Beta 12 X6 @@@ ROGUE MODE // 2023.01.30 @ 21:07:15 Player: albenzo Result: Destroyed by Cetus Guard with Advanced KE Penetrator Performance ------------- Evolutions (4) 2000 Regions Visited (11) 2200 Robots Destroyed (124) 620 Value Destroyed (2899) 2899 Prototype IDs (31) 620 Alien Tech Used (0) 0 Bonus (471) 471 TOTAL SCORE: 8810 Bonus ------- High Alert Combat Kills 19 Follower Combat Kills 152 Aligned with FarCom 300 Cogmind --------- Core Integrity 0/850 Matter 256/300 Energy 98/100 System Corruption 3% Temperature Cool (9) Movement Core (50) Location -6/Cetus Parts ------- > --- POWER (1) -------- (None) > --- PROPULSION (4) --- (None) > --- UTILITY (8) ------ Advanced Visual Processing Unit Enhanced Optical Array Improved Signal Interpreter Advanced Terrain Scan Processor Hacking Suite Improved System Shield > --- WEAPON (2) ------- (None) > --- INVENTORY (5) ---- Improved Trap Scanner Advanced Sensor Array Cloak of Protection Rocket Launcher Improved Datajack Peak State ------------ > --- POWER ------------ Light Nuclear Core > --- PROPULSION ------- Improved Flight Unit Xenon Bombardment Thruster Xenon Bombardment Thruster Xenon Bombardment Thruster > --- UTILITY ---------- Medium Storage Unit Advanced Visual Processing Unit Advanced Sensor Array Improved Signal Interpreter Advanced Terrain Scan Processor Hacking Suite Hacking Suite Improved System Shield > --- WEAPON ----------- Plasma Cutter Heavy Hammer > --- INVENTORY -------- Light Nuclear Core Cesium-ion Thruster Cesium-ion Thruster Xenon Bombardment Thruster Xenon Bombardment Thruster Xenon Bombardment Thruster Structural Scanner Cloak of Protection Rocket Launcher Improved Datajack [Rating: 52] Favorites ----------- Power Heavy Ion Engine Engine Heavy Ion Engine Power Core Light Nuclear Core Propulsion Light Treads Treads Light Treads Leg Improved Carbon-fiber Leg Flight Unit Xenon Bombardment Thruster Utility High-capacity Storage Unit Device Improved Heat Sink Storage High-capacity Storage Unit Processor Improved Signal Interpreter Hackware Hacking Suite Protection Light Armor Plating Weapon Improved Medium Laser Energy Gun Improved Medium Laser Energy Cannon Beam Cannon Ballistic Gun Light Assault Rifle Launcher Rocket Launcher Special Weapon Plasma Cutter Impact Weapon Heavy Hammer Build | -11 -10 -10 -9 -9 -9 -8 -8 -7 -6 -6 -6 ------- Run | Jun Mat Min Mat Min Exi Min Mat Fac Fac Ext Cet Slots Evolved 8 | . . . 2 . . . 2 2 2 . . Power . | . . . . . . . . . . . . Propulsion 2 | . . . 1 . . . 1 . . . . Utility 6 | . . . 1 . . . 1 2 2 . . Weapon . | . . . . . . . . . . . . Parts Attached 129 | 6 9 6 34 7 1 12 18 21 4 11 . Power 12 | 1 . 1 2 . . 1 4 2 . 1 . Engine 4 | 1 . . 2 . . . 1 . . . . Core 8 | . . 1 . . . 1 3 2 . 1 . Reactor . | . . . . . . . . . . . . Propulsion 48 | 2 3 . 15 4 1 2 5 7 1 8 . Treads 31 | 2 3 . 15 4 1 2 4 . . . . Leg 5 | . . . . . . . 1 . . 4 . Wheel . | . . . . . . . . . . . . Hover . | . . . . . . . . . . . . Flight 12 | . . . . . . . . 7 1 4 . Utility 37 | 1 3 2 8 3 . 1 5 9 3 2 . Device 15 | . 2 2 2 2 . . 1 3 2 1 . Storage 6 | 1 1 . 2 . . . . 2 . . . Processor 6 | . . . 1 . . . 1 3 . 1 . Hackware 3 | . . . . . . . 1 1 1 . . Protection 7 | . . . 3 1 . 1 2 . . . . Artifact . | . . . . . . . . . . . . Weapon 32 | 2 3 3 9 . . 8 4 3 . . . Energy Gun 18 | 1 3 1 6 . . 4 3 . . . . Energy Cannon 1 | . . 1 . . . . . . . . . Ballistic Gun 1 | 1 . . . . . . . . . . . Ballistic Cannon . | . . . . . . . . . . . . Launcher 5 | . . 1 . . . 4 . . . . . Special Weapon 5 | . . . 3 . . . . 2 . . . Impact Weapon 2 | . . . . . . . 1 1 . . . Slashing Weapon . | . . . . . . . . . . . . Piercing Weapon . | . . . . . . . . . . . . Special Melee Weapon . | . . . . . . . . . . . . Unidentified Prototypes 2 | . . . 2 . . . . . . . . Parts Lost 39 | . . 1 4 3 . 4 8 1 2 13 3 Power 6 | . . . 1 . . 1 2 . . 2 . Propulsion 19 | . . . 1 1 . 2 3 . 1 8 3 Utility 10 | . . . 2 2 . 1 2 1 . 2 . Weapon 4 | . . 1 . . . . 1 . 1 1 . Highest Loss Streak 13 | . . 1 1 2 . 2 5 1 1 13 3 To Critical Strikes 4 | . . 1 1 . . 1 . . . . 1 Average Slot Usage (%) 96 | . 95 100 96 100 100 99 96 90 93 65 57 Engine 6 | . 14 4 7 11 11 8 . . . . . Core 3 | . . 9 3 . . 2 8 6 6 1 . Treads 27 | . 27 28 32 33 33 32 35 . . . . Flight 3 | . . . . . . . . 29 26 9 . Device 8 | . 10 14 3 11 11 11 7 5 5 1 . Storage 10 | . 14 14 12 11 11 11 9 7 6 2 . Processor 4 | . . . 5 . . . 2 18 20 20 26 Hackware 2 | . . . . . . . 8 7 18 15 13 Protection 6 | . . . 9 11 11 11 6 2 . . . Energy Gun 17 | . 24 20 16 22 22 21 17 . . . . Energy Cannon 1 | . . 7 4 . . . . . . . . Naked Turns . | . . . . . . . . . . . . Heaviest Build 79 | 11 27 35 79 59 58 61 65 59 20 21 . Greatest Support 80 | 40 40 40 63 63 60 60 80 80 23 72 54 Greatest Overweight (x) 1 | . . . 1 . . 1 . . . . . Average Overweight (x) . | . . . . . . . . . . . . Largest Inventory Capacity 20 | 8 15 15 20 20 20 20 20 20 10 10 5 Average Capacity 16 | 6 11 15 18 20 20 20 20 10 10 7 5 Most Carried 20 | 8 15 15 20 20 20 20 20 20 10 10 5 Average Carried 16 | 4 11 14 18 19 19 18 18 9 9 6 5 Final Capacity 20 | 8 15 15 20 20 20 20 20 10 10 5 5 Final Carried 20 | 6 15 15 20 20 20 17 20 10 9 5 5 Class Distribution -------------------- 44% | Scavenger-Mutant 42% | Mutant 4% | Sprinter 3% | Hacker-Mutant Dominant Class ---------------- Mutant | -10/Materials Mutant | -10/Mines Scavenger-Mutant | -9/Materials Scavenger-Mutant | -9/Mines Scavenger-Mutant | -9/Exiles Mutant | -8/Mines Scavenger-Mutant | -8/Materials Sprinter | -7/Factory Hacker-Scout | -6/Factory Hacker-Mutant | -6/Extension Hacker-Mutant | -6/Cetus Resources | -11 -10 -10 -9 -9 -9 -8 -8 -7 -6 -6 -6 ----------- Run | Jun Mat Min Mat Min Exi Min Mat Fac Fac Ext Cet Matter Collected 1545 | 163 220 111 325 75 . 214 125 234 20 58 . Remotely . | . . . . . . . . . . . . Salvage Created 4128 | . 569 233 1441 383 . 399 681 212 20 190 . Parts 221 | . 29 15 100 18 . 31 19 6 . 3 . Haulers Intercepted 8 | . 2 . 6 . . . . . . . . Recyclers Shooed 5 | . 2 . . . . . 2 . . 1 . Parts Field Recycled . | . . . . . . . . . . . . Retrieved Matter . | . . . . . . . . . . . . Parts Self-Destructed . | . . . . . . . . . . . . Prevented . | . . . . . . . . . . . . Kills | -11 -10 -10 -9 -9 -9 -8 -8 -7 -6 -6 -6 ------- Run | Jun Mat Min Mat Min Exi Min Mat Fac Fac Ext Cet Combat Hostiles Destroyed 96 | . 9 10 28 10 . 22 12 4 . 1 . Melee 4 | . . . . . . . . 3 . 1 . Guns 66 | . 9 7 18 10 . 10 12 . . . . Cannons 10 | . . . 10 . . . . . . . . AOE 15 | . . 3 . . . 12 . . . . . Classes Destroyed 14 | . 6 1 2 . . 2 1 1 . 1 . Worker 4 | . 1 1 1 . . . 1 . . . . Builder 4 | . . . 4 . . . . . . . . Hauler 8 | . 2 . 6 . . . . . . . . Recycler 6 | . 2 1 2 . . . . . . 1 . Operator 1 | . . . . . . . . 1 . . . Watcher 8 | . 1 . 2 . . . 1 2 1 1 . Swarmer 45 | . 4 6 15 2 . 15 . 3 . . . Grunt 31 | . 5 1 6 6 . 5 8 . . . . Brawler 2 | . . . . . . . 2 . . . . Duelist 1 | . . . . . . 1 . . . . . Sentry 11 | . . . 7 2 . . 1 1 . . . Hunter 2 | . . . . . . 1 1 . . . . Programmer 1 | . . . . . . . . . . 1 . Assembled 3 | . . 3 . . . . . . . . . Best Kill Streak 5 | . 4 4 5 3 . 4 4 3 1 1 . Combat Bots Only 5 | . 3 3 5 3 . 4 3 3 . 1 . Max Kills in Single Turn 4 | . 2 2 2 1 . 4 2 1 1 1 . Gunslinging . | . . . . . . . . . . . . Exploded 4 | . . 2 . . . 4 . . . . . Melee 1 | . . . . . . . . 1 . 1 . Uniques/NPCs Destroyed . | . . . . . . . . . . . . Combat | -11 -10 -10 -9 -9 -9 -8 -8 -7 -6 -6 -6 -------- Run | Jun Mat Min Mat Min Exi Min Mat Fac Fac Ext Cet Damage Taken 6207 | . 507 277 882 346 . 854 934 306 77 1809 215 Core 1398 | . 136 35 110 37 . 69 89 67 . 735 120 Absorbed by Shields 221 | . . . . . . . . . . 139 82 Regen/Repaired (Parts) 199 | . 114 . . . . . 85 . . . . Core Remaining (%) 70 | 100 . 31 . . . 46 83 90 . . . Volleys Fired 268 | . 36 24 98 22 . 39 47 2 . . . Largest 2 | . 2 2 2 2 . 2 2 1 . . . Hottest 116 | . 90 100 116 112 . 112 112 20 . . . Shots Fired 516 | . 72 46 189 44 . 69 94 2 . . . Gun 449 | . 72 36 143 44 . 60 94 . . . . Cannon 47 | . . 8 39 . . . . . . . . Launcher 11 | . . 2 . . . 9 . . . . . Special 9 | . . . 7 . . . . 2 . . . Kinetic 11 | . 11 . . . . . . . . . . Thermal 494 | . 61 44 189 44 . 60 94 2 . . . Explosive 11 | . . 2 . . . 9 . . . . . Electromagnetic . | . . . . . . . . . . . . Robot Hit Streak 27 | . 12 8 16 6 . 7 27 8 . . . Robot Miss Streak 6 | . 3 3 5 3 . 3 6 . . . . Penetration Max . | . . . . . . . . . . . . Secondary Targets 6 | . . . . 3 . 2 1 . . . . Max Gunslinging Chain 1 | . . . . 1 . 1 1 . . . . Shots Hit Robots 335 | . 46 27 108 26 . 39 71 11 1 6 . Core Hits 171 | . 25 17 50 14 . 32 29 2 . 2 . Critical Kills 1 | . . . . . . . . 1 . . . Critical Parts Destroyed 4 | . . . . . . . . 3 . 1 . Critical Strikes 28 | . 3 . 5 6 . 4 5 4 . 1 . Burn 23 | . 3 . 5 6 . 4 5 . . . . Smash 5 | . . . . . . . . 4 . 1 . Melee Attacks 50 | . . . . . . . 1 31 8 10 . Impact 50 | . . . . . . . 1 31 8 10 . Slashing . | . . . . . . . . . . . . Piercing . | . . . . . . . . . . . . Sneak Attacks 1 | . . . . . . . . . . 1 . Combat Hostiles . | . . . . . . . . . . . . Follow-up Attacks . | . . . . . . . . . . . . Damage Inflicted 6847 | . 542 497 1846 459 . 1420 1249 447 76 311 . Guns 4535 | . 542 254 1440 459 . 591 1249 . . . . Cannons 425 | . . 54 371 . . . . . . . . Explosions 1018 | . . 189 . . . 829 . . . . . Melee 824 | . . . . . . . . 437 76 311 . Ramming . | . . . . . . . . . . . . Kinetic 40 | . 40 . . . . . . . . . . Thermal 4965 | . 502 308 1846 459 . 591 1249 10 . . . Explosive 1018 | . . 189 . . . 829 . . . . . Electromagnetic . | . . . . . . . . . . . . Impact 824 | . . . . . . . . 437 76 311 . Slashing . | . . . . . . . . . . . . Piercing . | . . . . . . . . . . . . Highest Corruption 3 | . 1 1 . . . . 1 . . 2 3 Average Corruption 1 | . 1 1 . . . . 1 . . 1 2 Corruption Purged . | . . . . . . . . . . . . Corruption Blocked . | . . . . . . . . . . . . Effects 25 | . 6 10 . . . . 2 . . 6 1 Message Errors 10 | . 2 3 . . . . 1 . . 3 1 Matter Fused 10 | . 3 4 . . . . 1 . . 2 . Heat Flow Errors 2 | . . 2 . . . . . . . . . Data Loss (minor) 2 | . . 1 . . . . . . . 1 . Data Loss (major) 1 | . 1 . . . . . . . . . . Overload Shots . | . . . . . . . . . . . . Overflow Damage 431 | . . 4 2 . . 26 . 240 41 118 . Projectiles 2 | . . . 2 . . . . . . . . Explosions 30 | . . 4 . . . 26 . . . . . Melee 399 | . . . . . . . . 240 41 118 . Knockbacks 5 | . . . . . . . . 2 1 2 . Impact 5 | . . . . . . . . 2 1 2 . Kinetic . | . . . . . . . . . . . . Secondary . | . . . . . . . . . . . . Self-Inflicted Damage 158 | . . . . . . 158 . . . . . Shots 4 | . . . . . . 4 . . . . . Rammed . | . . . . . . . . . . . . Targets Rammed . | . . . . . . . . . . . . Kicked . | . . . . . . . . . . . . Crushed . | . . . . . . . . . . . . Highest Temperature 378 | . 80 154 378 84 . 198 274 1 7 1 . Average Temperature 84 | . 31 45 114 35 . 56 77 1 7 1 . Received Heat Transfer 1611 | . 111 74 144 120 . 81 477 24 36 514 30 Effects 2 | . . . 2 . . . . . . . . Energy Bleed 2 | . . . 2 . . . . . . . . Siege Activations . | . . . . . . . . . . . . Robots Corrupted . | . . . . . . . . . . . . Combat Hostiles . | . . . . . . . . . . . . Parts Fried 11 | . . . . . . . . 6 1 4 . Impact Corruptions 16 | . . . . . . . . 9 2 5 . Robots Melted . | . . . . . . . . . . . . Combat Hostiles . | . . . . . . . . . . . . Parts Melted 27 | . 5 1 9 3 . 3 6 . . . . Heat Transferred 12780 | . 1549 686 4403 1443 . 1591 3071 37 . . . Parts Sabotaged . | . . . . . . . . . . . . Parts Stolen . | . . . . . . . . . . . . Parts Stripped . | . . . . . . . . . . . . Power Chain Reactions . | . . . . . . . . . . . . Missiles Intercepted . | . . . . . . . . . . . . Alert | -11 -10 -10 -9 -9 -9 -8 -8 -7 -6 -6 -6 ------- Run | Jun Mat Min Mat Min Exi Min Mat Fac Fac Ext Cet Peak Influence 450 | . 177 107 450 318 . 350 210 387 410 247 59 Initial 200 | . . 47 34 175 . . 41 65 189 200 39 Average 160 | . 48 64 274 203 . 194 90 130 255 86 43 Maximum Alert Level 2 | . . . 2 1 . 1 1 1 2 1 . Low Security (%) 63 | 100 100 100 23 49 . 39 99 87 31 79 100 Level 1 33 | . . . 66 50 . 60 . 12 61 20 . Level 2 2 | . . . 10 . . . . . 7 . . Level 3 . | . . . . . . . . . . . . Level 4 . | . . . . . . . . . . . . Level 5 . | . . . . . . . . . . . . High Security . | . . . . . . . . . . . . Max Security . | . . . . . . . . . . . . Squads Dispatched 16 | . 2 . 4 1 . . . 7 1 1 . Investigation 10 | . 1 . 2 . . . . 6 1 . . Extermination 1 | . . . . . . . . 1 . . . Reinforcement 5 | . 1 . 2 1 . . . . . 1 . Assault . | . . . . . . . . . . . . Garrison . | . . . . . . . . . . . . Intercept . | . . . . . . . . . . . . Searches Triggered . | . . . . . . . . . . . . Construction Impeded 2 | . . . 1 1 . . . . . . . Haulers Reinforced . | . . . . . . . . . . . . Active Scanning Responses . | . . . . . . . . . . . . Cargo Convoy Interrupts . | . . . . . . . . . . . . Stealth | -11 -10 -10 -9 -9 -9 -8 -8 -7 -6 -6 -6 --------- Run | Jun Mat Min Mat Min Exi Min Mat Fac Fac Ext Cet Distress Signals 9 | . . . 4 . . . 2 3 . . . Communications Jammed . | . . . . . . . . . . . . Distress Signals . | . . . . . . . . . . . . Times Spotted 203 | . 16 11 42 16 . 22 21 30 16 24 5 Peak Tracking Total 13 | . 3 3 6 3 . 4 7 11 13 9 5 Tactical Retreats 19 | . 2 2 1 2 . . 2 3 3 4 . Traps | -11 -10 -10 -9 -9 -9 -8 -8 -7 -6 -6 -6 ------- Run | Jun Mat Min Mat Min Exi Min Mat Fac Fac Ext Cet Traps Triggered 14 | . 2 . 4 . . . . 3 1 4 . Indirectly . | . . . . . . . . . . . . Trap Hack Attempts . | . . . . . . . . . . . . Triggered . | . . . . . . . . . . . . Disarmed . | . . . . . . . . . . . . Reprogrammed . | . . . . . . . . . . . . Reused . | . . . . . . . . . . . . Traps Extracted . | . . . . . . . . . . . . Installed . | . . . . . . . . . . . . Triggered . | . . . . . . . . . . . . Machines | -11 -10 -10 -9 -9 -9 -8 -8 -7 -6 -6 -6 ---------- Run | Jun Mat Min Mat Min Exi Min Mat Fac Fac Ext Cet Machines Disabled 6 | . . . 1 . . . 2 2 . 1 . Max in Single Turn 1 | . . . 1 . . . 1 1 . . . Garrison Access 3 | . . . . . . . . 1 2 . . Machines Repaired . | . . . . . . . . . . . . Machines Sabotaged . | . . . . . . . . . . . . Overloaded Fab Kills . | . . . . . . . . . . . . Hacking | -11 -10 -10 -9 -9 -9 -8 -8 -7 -6 -6 -6 --------- Run | Jun Mat Min Mat Min Exi Min Mat Fac Fac Ext Cet Machines Accessed 49 | . 6 . 6 . 3 . 8 11 3 12 . Terminals 35 | . 5 . 6 . . . 5 6 1 12 . Fabricators 2 | . . . . . . . . 2 . . . Repair Stations 2 | . 1 . . . . . 1 . . . . Recycling Units 2 | . . . . . . . 1 1 . . . Scanalyzers 2 | . . . . . . . 1 1 . . . Garrison Access 3 | . . . . . . . . 1 2 . . Total Hacks 132 | . 14 . 19 . 11 . 19 31 8 30 . Successful 70 | . 6 . 6 . 11 . 11 16 3 17 . Failed 62 | . 8 . 13 . . . 8 15 5 13 . Catastrophic 11 | . 1 . 3 . . . 1 4 1 1 . Database Lockouts . | . . . . . . . . . . . . Manual 54 | . 5 . 12 . 1 . 9 17 5 5 . Terminals 96 | . 12 . 19 . . . 11 19 5 30 . Fabricators 5 | . . . . . . . . 5 . . . Repair Stations 4 | . 2 . . . . . 2 . . . . Recycling Units 3 | . . . . . . . 2 1 . . . Scanalyzers 7 | . . . . . . . 4 3 . . . Garrison Access 6 | . . . . . . . . 3 3 . . Terminal Hacks 46 | . 4 . 5 . 11 . 2 8 . 16 . Record 10 | . . . . . 10 . . . . . . Part Schematic 1 | . . . . . . . . 1 . . . Prototype ID Bank 2 | . . . . . . . 1 . . 1 . Open Door 8 | . . . . . . . . . . 8 . Branch Access Points 2 | . . . . . . . . 1 . 1 . Emergency Access Points 1 | . . . . . . . 1 . . . . Terminal Index 3 | . 1 . . . . . . 1 . 1 . Scanalyzer Index 1 | . . . . . . . . . . 1 . Alert Level 6 | . 1 . 2 . . . . 1 . 2 . Unreport Threat 2 | . . . . . . . . 1 . 1 . Locate Traps 1 | . . . 1 . . . . . . . . Patrol Status 1 | . . . . . . . . 1 . . . Transport Status 2 | . . . 1 . . . . 1 . . . Hauler Manifests 3 | . 1 . 1 . . . . 1 . . . Zone Layout 2 | . 1 . . . . . . . . 1 . EX-Prototype ID Bank 1 | . . . . . 1 . . . . . . Fabricator Hacks 3 | . . . . . . . . 3 . . . Load Schematic 2 | . . . . . . . . 2 . . . Build 1 | . . . . . . . . 1 . . . Repair Station Hacks 4 | . 2 . . . . . 2 . . . . Scan Component 2 | . 1 . . . . . 1 . . . . Repair 2 | . 1 . . . . . 1 . . . . Recycling Unit Hacks . | . . . . . . . . . . . . Scanalyzer 5 | . . . . . . . 4 1 . . . Insert Component 3 | . . . . . . . 2 1 . . . Analyze 2 | . . . . . . . 2 . . . . Garrison Access Hacks 3 | . . . . . . . . 1 2 . . Seal Access 3 | . . . . . . . . 1 2 . . Unauthorized Hacks 9 | . . . 1 . . . 3 3 1 1 . Terminals 5 | . . . 1 . . . 1 1 1 1 . Assimilate 3 | . . . . . . . 1 1 1 . . Operators 2 | . . . 1 . . . . . . 1 . Fabricators . | . . . . . . . . . . . . Repair Stations . | . . . . . . . . . . . . Recycling Units 3 | . . . . . . . 2 1 . . . Reject 1 | . . . . . . . 1 . . . . Mask 1 | . . . . . . . 1 . . . . Tunnel 1 | . . . . . . . . 1 . . . Scanalyzers . | . . . . . . . . . . . . Garrison Access 1 | . . . . . . . . 1 . . . Watchers 1 | . . . . . . . . 1 . . . Data Cores Recovered . | . . . . . . . . . . . . Used . | . . . . . . . . . . . . Hacking Detections 35 | . 6 . 6 . . . 7 9 2 5 . Full Trace Events 6 | . 1 . 1 . . . . 4 . . . Feedback Events . | . . . . . . . . . . . . Feedback Blocked . | . . . . . . . . . . . . Robot Schematics Acquired . | . . . . . . . . . . . . Robots Built . | . . . . . . . . . . . . Authchips . | . . . . . . . . . . . . Time . | . . . . . . . . . . . . Total Robot Build Rating . | . . . . . . . . . . . . Part Schematics Acquired 3 | . . . . . . . 2 1 . . . Parts Built 1 | . . . . . . . . 1 . . . Authchips . | . . . . . . . . . . . . Time 36 | . . . . . . . . 36 . . . Total Part Build Rating 3 | . . . . . . . . 3 . . . Parts Repaired 2 | . 1 . . . . . 1 . . . . Time 77 | . 26 . . . . . 51 . . . . Parts Recycled . | . . . . . . . . . . . . Recycled Matter . | . . . . . . . . . . . . Retrieved Matter . | . . . . . . . . . . . . Retrieved Components . | . . . . . . . . . . . . Parts Scanalyzed 3 | . . . . . . . 2 1 . . . Part Schematics Acquired 2 | . . . . . . . 2 . . . . Parts Damaged . | . . . . . . . . . . . . Bothacking | -11 -10 -10 -9 -9 -9 -8 -8 -7 -6 -6 -6 ------------ Run | Jun Mat Min Mat Min Exi Min Mat Fac Fac Ext Cet Used RIF Installer . | . . . . . . . . . . . . Robots Hacked . | . . . . . . . . . . . . Non-combat . | . . . . . . . . . . . . Combat . | . . . . . . . . . . . . Robot Hacks Applied . | . . . . . . . . . . . . Relay Couplers Released . | . . . . . . . . . . . . Fabnet Peak Effective % . | . . . . . . . . . . . . Robots Rewired . | . . . . . . . . . . . . Allies Hacked . | . . . . . . . . . . . . Hacks Repelled . | . . . . . . . . . . . . Allies | -11 -10 -10 -9 -9 -9 -8 -8 -7 -6 -6 -6 -------- Run | Jun Mat Min Mat Min Exi Min Mat Fac Fac Ext Cet Total Allies 19 | . . . . 3 . . 1 3 1 11 . Largest Group 3 | . . . . 3 . . 1 2 1 2 1 Highest-Rated Group 159 | . . . . 40 . . 10 62 26 159 159 Highest-Rated Ally 159 | . . . . 16 . . 10 31 26 159 159 Total Orders . | . . . . . . . . . . . . Ally Attacks 80 | . . . . 18 . . . 10 . 48 4 Total Damage 1287 | . . . . 218 . . . 167 . 702 200 Kills 8 | . . . . 6 . . . . . 1 1 Allies Corrupted . | . . . . . . . . . . . . Allies Melted . | . . . . . . . . . . . . Intel | -11 -10 -10 -9 -9 -9 -8 -8 -7 -6 -6 -6 ------- Run | Jun Mat Min Mat Min Exi Min Mat Fac Fac Ext Cet Robot Analysis Total . | . . . . . . . . . . . . Derelict Logs Recovered 4 | . . 2 . 2 . . . . . . . Drone Launches . | . . . . . . . . . . . . Drone Recoveries . | . . . . . . . . . . . . Exploration | -11 -10 -10 -9 -9 -9 -8 -8 -7 -6 -6 -6 ------------- Run | Jun Mat Min Mat Min Exi Min Mat Fac Fac Ext Cet Turns Passed 9338 | 73 983 1001 1967 1292 541 1217 988 684 169 387 36 Spaces Moved 6284 | 41 494 569 881 737 337 664 397 1270 456 405 33 Core 66 | 7 . . . . . . . . . 54 5 Treads 4118 | 34 494 569 881 737 337 664 397 5 . . . Legs 172 | . . . . . . . . . . 144 28 Wheels . | . . . . . . . . . . . . Hover . | . . . . . . . . . . . . Flight 1928 | . . . . . . . . 1265 456 207 . Fastest Speed 29 | 50 160 160 160 160 160 160 160 29 31 29 50 Average Speed 119 | 141 160 160 166 160 160 160 160 31 31 65 109 Slowest Speed 240 | 160 160 160 240 160 160 240 160 160 31 120 120 Overloaded Moves . | . . . . . . . . . . . . Propulsion Burnouts . | . . . . . . . . . . . . Robots Hopped 11 | . . . . . . . . 6 4 1 . Cave-ins Triggered . | . . . . . . . . . . . . Exploration Rate (%) 58 | 4 70 98 74 100 77 94 34 40 19 74 19 Regions Visited 11 Branch Regions 6 Pre-discovered Areas 3 | . . 1 . . 1 . . 1 . . . Known Exits Taken 3 | . . . . . . . . 1 1 1 . Unknown Exits Taken 8 | 1 1 1 1 1 1 1 1 . . . . Scrap Searched 3 | . . 1 . 1 . 1 . . . . . Spaces Dug 16 | . . . . . . . 1 8 7 . . Terrain Destroyed 131 | . . 18 . . . 97 1 8 7 . . Melee 16 | . . . . . . . 1 8 7 . . Projectile . | . . . . . . . . . . . . AOE 115 | . . 18 . . . 97 . . . . . Terrain Rammed . | . . . . . . . . . . . . Walls Destroyed . | . . . . . . . . . . . . Machines Disabled . | . . . . . . . . . . . . Actions | -11 -10 -10 -9 -9 -9 -8 -8 -7 -6 -6 -6 --------- Run | Jun Mat Min Mat Min Exi Min Mat Fac Fac Ext Cet Total 7532 | 54 626 613 1190 807 339 747 651 1501 463 508 33 Wait 617 | . 51 11 137 33 . 28 179 132 . 46 . Move 6251 | 40 493 568 880 736 336 663 396 1257 447 402 33 Hop 11 | . . . . . . . . 6 4 1 . Pick Up 67 | 8 20 1 15 4 1 3 7 7 . 1 . Fast Attach 41 | 4 4 2 13 . . . 6 5 2 5 . Attach 37 | 2 . 1 3 3 1 4 8 8 1 6 . Detach 13 | . . 1 3 . . . 3 5 . 1 . Swap 51 | . 5 3 18 4 . 8 4 8 1 . . Drop 74 | . 17 2 23 5 1 2 . 22 . 2 . Fire 268 | . 36 24 98 22 . 39 47 2 . . . Melee 50 | . . . . . . . 1 31 8 10 . Ram . | . . . . . . . . . . . . Kick . | . . . . . . . . . . . . Crush . | . . . . . . . . . . . . Escape Stasis 52 | . . . . . . . . 18 . 34 . Rewire . | . . . . . . . . . . . . Trap . | . . . . . . . . . . . . Miscellaneous . | . . . . . . . . . . . . Route ------- -11/Junkyard -10/Materials (discovered 3 exits: *Mat x2 / [*Min]) -10/Mines (discovered 2 exits: *Mat x2) -9/Materials (discovered 6 exits: *Mat x2 / [*Min x2] / [*Sto x2]) -9/Mines (discovered 3 exits: *Mat x2 / *Exi) -9/Exiles (discovered 2 exits: [*Min x2]) -8/Mines (discovered 2 exits: *Mat x2) -8/Materials -7/Factory (discovered 3 exits: *Fac / Low x2) -6/Factory -6/Extension (discovered 3 exits: *Fac x2 / *Cet) -6/Cetus History --------- Turn | Location | Event 30 | -11/Junkyard | Discovered new exit (range 15) 74 | -11/Junkyard | Entered Materials 310 | -10/Materials | Build established: Mutant 330 | -10/Materials | Discovered new exit (range 15) 661 | -10/Materials | Repaired Lgt. Treads 732 | -10/Materials | Discovered new exit (range 3) 877 | -10/Materials | Discovered new exit (range 6) 965 | -10/Materials | Core integrity fell below 50% 1057 | -10/Materials | Entered Mines 1126 | -10/Mines | Learned location of Recycling (-9) 1215 | -10/Mines | Assembled infested the area 1220 | -10/Mines | Assisted by a Guerilla fighting off Assembled 1569 | -10/Mines | Learned 2 Materials zone layouts 1572 | -10/Mines | Discovered new exit (range 5) 1993 | -10/Mines | Discovered new exit (range 11) 2058 | -10/Mines | Entered Materials 2058 | -9/Materials | Evolved 2 slots: Propulsion x1, Utility x1 2455 | -9/Materials | Discovered new exit (range 5) 2641 | -9/Materials | Build established: Scavenger-Mutant 2981 | -9/Materials | Discovered new exit (range 5) 3104 | -9/Materials | Discovered new exit (range 5) 3494 | -9/Materials | Discovered new exit (range 7) 3610 | -9/Materials | Build established: Mutant 3638 | -9/Materials | Discovered new exit (range 15) 3996 | -9/Materials | Discovered new exit (range 8) 4025 | -9/Materials | Entered Mines 4065 | -9/Mines | Met a Derelict bent on vengeance 4117 | -9/Mines | Learned Materials trap positions 4485 | -9/Mines | Discovered new exit (range 14) 4493 | -9/Mines | Assisted by bots powering up and referring to "LRC-V3" 4518 | -9/Mines | Received a Rocket Launcher from a helpful Derelict 4692 | -9/Mines | Build established: Scavenger-Mutant 4924 | -9/Mines | Deemed a non-threat by the Exiles lab entrance 4924 | -9/Mines | Discovered new exit (range 5) 4957 | -9/Mines | Found a hidden stash of uninstalled traps 5057 | -9/Mines | Discovered new exit (range 9) 5317 | -9/Mines | Entered Exiles 5343 | -9/Exiles | Discovered new exit (range 15) 5357 | -9/Exiles | Met 8R-AWN 5385 | -9/Exiles | Met EX-HEX 5434 | -9/Exiles | Met EX-BIN 5466 | -9/Exiles | Aligned with FarCom system 5468 | -9/Exiles | Given EX-Vault access code 5505 | -9/Exiles | Opened EX-Vault 5527 | -9/Exiles | Found Cloak of Protection 5558 | -9/Exiles | Warned to stay clear of 0b10 Research branches 5656 | -9/Exiles | Met EX-DEC 5692 | -9/Exiles | Visited The Gauntlet 5763 | -9/Exiles | Learned location of Zion (-6) 5838 | -9/Exiles | Discovered new exit (range 11) 5858 | -9/Exiles | Left Exiles lab with Cloak of Protection 5858 | -9/Exiles | Entered Mines 6435 | -8/Mines | Discovered new exit (range 11) 6487 | -8/Mines | Build established: Mutant 6522 | -8/Mines | Core integrity fell below 50% 6550 | -8/Mines | Discovered new exit (range 9) 7075 | -8/Mines | Entered Materials 7075 | -8/Materials | Evolved 2 slots: Propulsion x1, Utility x1 7076 | -8/Materials | Loaded intel: 14 trap records 7100 | -8/Materials | Build established: Scavenger-Mutant 7436 | -8/Materials | Repaired Imp. Medium Laser 7915 | -8/Materials | Lost 5 parts (2p1n1u1w) 8039 | -8/Materials | Discovered new exit (range 7) 8063 | -8/Materials | Entered Factory 8063 | -7/Factory | Evolved 2 slots: Utility x2 8064 | -7/Factory | Identified exit to Lower Caves 8223 | -7/Factory | Allied Derelicts emerged from ambush trap array 8545 | -7/Factory | Fabricated Hacking Suite? 8736 | -7/Factory | Discovered new exit (range 4) 8737 | -7/Factory | Identified exit to Factory 8747 | -7/Factory | Entered another Factory area 8747 | -6/Factory | Evolved 2 slots: Utility x2 8883 | -6/Factory | Spotted B-75 Beast 8914 | -6/Factory | Discovered new exit (range 6) 8916 | -6/Factory | Identified exit to Extension 8916 | -6/Factory | Entered Extension 8928 | -6/Extension | Rescued a captive Derelict 8938 | -6/Extension | Rescued a captive Derelict 8950 | -6/Extension | Identified exit to Cetus 9048 | -6/Extension | Rescued a captive Derelict 9049 | -6/Extension | Rescued a captive Derelict 9064 | -6/Extension | Spotted B-75 Beast 9065 | -6/Extension | Rescued a captive Derelict 9066 | -6/Extension | Rescued a captive Derelict 9070 | -6/Extension | Spotted B-75 Beast 9080 | -6/Extension | Core integrity fell below 50% 9084 | -6/Extension | Discovered new exit (range 3) 9084 | -6/Extension | Identified exit to Factory 9088 | -6/Extension | Core integrity fell below 20% 9112 | -6/Extension | Lost 13 parts (2p8n2u1w) 9125 | -6/Extension | Rescued a captive Derelict 9125 | -6/Extension | Rescued a captive Derelict 9171 | -6/Extension | Rescued a captive Derelict 9172 | -6/Extension | Rescued a captive Derelict 9261 | -6/Extension | Rescued A7 9276 | -6/Extension | Build established: Hacker-Mutant 9288 | -6/Extension | Discovered exit to Factory (range 10) 9303 | -6/Extension | Entered Cetus 9303 | -6/Cetus | Accompanied by 1 ally (A7) 9308 | -6/Cetus | Acquired a Cetus Manufacturing Module code from A7 9317 | -6/Cetus | Spotted Cetus Guard 9317 | -6/Cetus | Spotted Cetus Guard 9317 | -6/Cetus | Spotted Cetus Guard 9317 | -6/Cetus | Spotted Cetus Guard 9339 | -6/Cetus | Destroyed by Cetus Guard with Advanced KE Penetrator Last Messages --------------- that we were able to remotely install a back door enabling us to temporarily cloak the local fabrication network and use it for our own purposes. We've probably got squads on our tail and could use some help about now. Try entering \\TPJ6. Note that I've never tried this before, but now is as good a time as any." 09321_ Slug penetrates Wall. 09323_ W-25 Informer system terminally corrupted. 09323_ Penetrated by Slug. 09323_ Imp. Carbon-fiber Leg destroyed. 09326_ Penetrated by Slug. 09327_ Slug penetrates Wall. 09329_ Slug penetrates A7. 09334_ Slug penetrates Earth. 09337_ A7: "I've done al##MISSION::FAILED##" 09337_ A7 destroyed. 09337_ Imp. Carbon-fiber Leg destroyed. 09337_ Penetrated by Slug. 09337_ Critical hit (Destroy). 09337_ Imp. Carbon-fiber Leg destroyed. 09338_ VAX I0#X0V1BE AOBSV5&LZ Map ----- +----------------------------------------------------+ | ?????????????????????????????????????????????????? | | ?????????????????????????????????????????????????? | | ????????????? ?????????????????????????????????? | | ????????????? ?????????????????????????????????? | | ????????????# ?????????????????????????????????? | | ????????????# #????????????????????????????????? | | ????????????# #????????????????????????????????? | | ????????????# #????????????????????????????????? | | ????????????# #????????????????????????????????? | | ????????????# #????????????????????????????????? | | ????????????# #????????????????????????????????? | | ????????????# #????????????????????????????????? | | ????????????# #????????????????????????????????? | | ????????????# #????????????????????????????????? | | ????????????# #????????????????????????????????? | | ????????????# #????????????????????????????????? | | ????????????# #????????????????????????????????? | | ????????????# #????????????????????????????????? | | ????????????# #????????????????????????????????? | | ????????????# #????????????????????????????????? | | ????????????# #????????????????????????????????? | | ????????????# #????????????????????????????????? | | ????????????# #????????????????????????????????? | | ????????## # #?########???????????????????????? | | #######"#;;;; ###;#; ###?????????????????????? | | Y @ +?????????????????????? | | $% Y +?????????????????????? | | YY +?????????????????????? | | #########;#;########## ###?????????????????????? | | ????????###??????????#####???????????????????????? | | ?????????????????????????????????????????????????? | | ?????????????????????????????????????????????????? | | ?????????????????????????????????????????????????? | | ?????????????????????????????????????????????????? | | ?????????????????????????????????????????????????? | | ?????????????????????????????????????????????????? | | ?????????????????????????????????????????????????? | | ?????????????????????????????????????????????????? | | ?????????????????????????????????????????????????? | | ?????????????????????????????????????????????????? | | ?????????????????????????????????????????????????? | | ?????????????????????????????????????????????????? | | ?????????????????????????????????????????????????? | | ?????????????????????????????????????????????????? | | ?????????????????????????????????????????????????? | | ?????????????????????????????????????????????????? | | ?????????????????????????????????????????????????? | | ?????????????????????????????????????????????????? | | ?????????????????????????????????????????????????? | | ?????????????????????????????????????????????????? | +----------------------------------------------------+ Best States ------------- Heat Dissipation 50 Energy Generation 18 Energy Capacity 310 Matter Stores 300 Matter Capacity 300 Sight Range 22 Robot Scan Range 16 Terrain Scan Density 210 Armor Coverage 150 Evasion (%) 64 Targeting Accuracy 8 Recoil Reduction 4 Offensive Hacking 20 Defensive Hacking 12 Item Schematics ----------------- Hacking Suite | -8/Materials | Scanalyzed Imp. Flight Unit | -8/Materials | Scanalyzed Imp. Trap Scanner | -7/Factory | Hacked Robot Schematics ------------------ None Fabricated ------------ Hacking Suite | x1 | -7/Factory Alien Tech Used ----------------- None Achievements -------------- None Challenges ------------ None Game ------ Seed ActiveFlightSuperbattery Manual? 0 Play Time 01:15:41 Cumulative 104.1 hours Start 2023.01.30 @ 00:17:38 End 2023.01.30 @ 21:07:15 Sessions 3 Manual Loads 0 Difficulty Rogue Special Mode None Game No. 89 Rogue 89 Adventurer 0 Explorer 0 Win Type - Total 6 Types 5/0/1/0/0/0/0/0/0 Lore% 66 Gallery% 64 Achievement% 56 Wizard Run 0 Options --------- ASCII 0 Keyboard 1 Movement Vi Keybinds 0 Fullscreen 2 Font 24/Proggy Map View 76x50 Tactical HUD 1 Map Filters NONE Filters NONE Steam 1 RUN: 37e5486e-5287-4bd4-b3cb-e8b75591d9aa